[Event "December 12 Late 2023"]
[Site "https://www.chess.com"]
[Date "2023.12.12"]
[Round "4"]
[White "Timmermans, Mark"]
[Black "Hakobyan, Aram"]
[Result "0-1"]
[Board "11"]
[TimeControl "180+1"]
[WhiteFideId "1026399"]
[BlackFideId "13306677"]
[WhiteElo "2724"]
[BlackElo "3004"]
[WhiteTeam "NED"]
[BlackTeam "ARM"]
[WhiteClock "0:01:02"]
[BlackClock "0:00:43"]

1. b4 {[%clk 0:02:58]}  e5 {[%clk 0:02:59]} 2. Bb2 {[%clk 0:02:58]}  Bxb4 {[%clk 0:03:00]} 3. Bxe5 {[%clk 0:02:58]}  Nf6 {[%clk 0:03:00]} 4. Nc3 {[%clk 0:02:59]}  c6 {[%clk 0:02:33]} 5. a3 {[%clk 0:02:59]}  Ba5 {[%clk 0:02:30]} 6. e3 {[%clk 0:02:58]}  O-O {[%clk 0:02:29]} 7. Nf3 {[%clk 0:02:58]}  d6 {[%clk 0:02:27]} 8. Bxf6 {[%clk 0:02:55]}  Qxf6 {[%clk 0:02:27]} 9. Ne4 {[%clk 0:02:56]}  Qe7 {[%clk 0:02:26]} 10. Ng3 {[%clk 0:02:55]}  Nd7 {[%clk 0:02:25]} 11. Be2 {[%clk 0:02:51]}  Nf6 {[%clk 0:02:25]} 12. O-O {[%clk 0:02:49]}  d5 {[%clk 0:02:25]} 13. c4 {[%clk 0:02:48]}  Rd8 {[%clk 0:02:24]} 14. d4 {[%clk 0:02:47]}  Bc7 {[%clk 0:02:19]} 15. Qc2 {[%clk 0:02:43]}  g6 {[%clk 0:02:14]} 16. a4 {[%clk 0:02:34]}  Kg7 {[%clk 0:02:14]} 17. Rab1 {[%clk 0:02:29]}  h5 {[%clk 0:02:12]} 18. Bd3 {[%clk 0:02:26]}  Ng4 {[%clk 0:01:43]} 19. cxd5 {[%clk 0:02:23]}  Rxd5 {[%clk 0:01:38]} 20. e4 {[%clk 0:02:17]}  Rd8 {[%clk 0:01:33]} 21. e5 {[%clk 0:02:12]}  Bb6 {[%clk 0:01:22]} 22. Qc3 {[%clk 0:01:58]}  h4 {[%clk 0:00:43]} 23. Ne4 {[%clk 0:01:56]}  Bxd4 {[%clk 0:00:44]} 24. Nxd4 {[%clk 0:01:46]}  Qxe5 {[%clk 0:00:44]} 25. Rb4 {[%clk 0:01:02]}  Qxh2# {[%clk 0:00:43]} 0-1

[Event "December 12 Late 2023"]
[Site "https://www.chess.com"]
[Date "2023.12.12"]
[Round "4"]
[White "Salem, A.R. Saleh"]
[Black "Dyachuk, Artem"]
[Result "1-0"]
[Board "12"]
[TimeControl "180+1"]
[WhiteFideId "9301348"]
[BlackFideId "34107924"]
[WhiteElo "3001"]
[BlackElo "2716"]
[WhiteTeam "UAE"]
[BlackTeam "UKR"]
[WhiteClock "0:00:31"]
[BlackClock "0:00:34"]

1. d4 {[%clk 0:03:00]}  d5 {[%clk 0:02:58]} 2. c4 {[%clk 0:03:01]}  c6 {[%clk 0:02:58]} 3. Nf3 {[%clk 0:03:00]}  Nf6 {[%clk 0:02:59]} 4. Nc3 {[%clk 0:03:01]}  e6 {[%clk 0:02:59]} 5. Bg5 {[%clk 0:03:01]}  h6 {[%clk 0:02:58]} 6. Bxf6 {[%clk 0:03:01]}  Qxf6 {[%clk 0:02:59]} 7. e3 {[%clk 0:03:01]}  g6 {[%clk 0:02:59]} 8. Be2 {[%clk 0:03:01]}  Bg7 {[%clk 0:02:59]} 9. O-O {[%clk 0:03:02]}  O-O {[%clk 0:03:00]} 10. b4 {[%clk 0:02:51]}  Nd7 {[%clk 0:02:58]} 11. cxd5 {[%clk 0:02:49]}  exd5 {[%clk 0:02:57]} 12. b5 {[%clk 0:02:47]}  Nb6 {[%clk 0:02:46]} 13. a4 {[%clk 0:02:40]}  Qd6 {[%clk 0:02:43]} 14. a5 {[%clk 0:02:36]}  Nd7 {[%clk 0:02:43]} 15. Qb3 {[%clk 0:02:24]}  Nf6 {[%clk 0:02:41]} 16. Rac1 {[%clk 0:02:14]}  Be6 {[%clk 0:02:39]} 17. bxc6 {[%clk 0:02:07]}  bxc6 {[%clk 0:02:38]} 18. Ne5 {[%clk 0:01:49]}  Rfc8 {[%clk 0:02:19]} 19. Nd3 {[%clk 0:01:26]}  Ne4 {[%clk 0:02:19]} 20. Qc2 {[%clk 0:01:11]}  Bf5 {[%clk 0:02:18]} 21. Nxe4 {[%clk 0:01:10]}  Bxe4 {[%clk 0:02:19]} 22. Qc5 {[%clk 0:01:07]}  Qd8 {[%clk 0:02:18]} 23. Rfd1 {[%clk 0:00:53]}  Rab8 {[%clk 0:02:07]} 24. Qxa7 {[%clk 0:00:42]}  Rb5 {[%clk 0:02:06]} 25. Ne5 {[%clk 0:00:35]}  Bxe5 {[%clk 0:01:31]} 26. Bxb5 {[%clk 0:00:35]}  Qh4 {[%clk 0:00:40]} 27. dxe5 {[%clk 0:00:33]}  Bxg2 {[%clk 0:00:34]} 28. Kxg2 {[%clk 0:00:34]}  Qg4+ {[%clk 0:00:35]} 29. Kf1 {[%clk 0:00:35]}  Qh3+ {[%clk 0:00:35]} 30. Ke1 {[%clk 0:00:31]}  Qxh2 {[%clk 0:00:34]} 1-0

[Event "December 12 Late 2023"]
[Site "https://www.chess.com"]
[Date "2023.12.12"]
[Round "4"]
[White "Smirnov, Anton"]
[Black "Martinez Ramirez, Lennis"]
[Result "1/2-1/2"]
[Board "13"]
[TimeControl "180+1"]
[WhiteFideId "3208923"]
[BlackFideId "3509079"]
[WhiteElo "2979"]
[BlackElo "2716"]
[WhiteTeam "AUS"]
[BlackTeam "CUB"]
[WhiteClock "0:00:09"]
[BlackClock "0:00:02"]

1. e4 {[%clk 0:03:00]}  e5 {[%clk 0:02:53]} 2. Nf3 {[%clk 0:03:00]}  Nc6 {[%clk 0:02:53]} 3. Bb5 {[%clk 0:03:00]}  a6 {[%clk 0:02:53]} 4. Bxc6 {[%clk 0:03:00]}  dxc6 {[%clk 0:02:53]} 5. O-O {[%clk 0:03:01]}  Bg4 {[%clk 0:02:43]} 6. h3 {[%clk 0:03:01]}  h5 {[%clk 0:02:43]} 7. d3 {[%clk 0:03:01]}  Bc5 {[%clk 0:02:41]} 8. Be3 {[%clk 0:02:56]}  Bxf3 {[%clk 0:02:28]} 9. Qxf3 {[%clk 0:02:55]}  Bxe3 {[%clk 0:02:26]} 10. Qxe3 {[%clk 0:02:52]}  g5 {[%clk 0:02:13]} 11. Nd2 {[%clk 0:02:45]}  f6 {[%clk 0:02:05]} 12. Rad1 {[%clk 0:02:41]}  Qe7 {[%clk 0:01:53]} 13. Nb3 {[%clk 0:02:40]}  Nh6 {[%clk 0:01:26]} 14. d4 {[%clk 0:02:38]}  b6 {[%clk 0:01:18]} 15. dxe5 {[%clk 0:02:37]}  fxe5 {[%clk 0:01:18]} 16. Rd3 {[%clk 0:02:31]}  Nf7 {[%clk 0:01:16]} 17. Rfd1 {[%clk 0:02:31]}  Nd6 {[%clk 0:01:16]} 18. Rc3 {[%clk 0:02:03]}  c5 {[%clk 0:01:12]} 19. Qe2 {[%clk 0:02:03]}  a5 {[%clk 0:01:05]} 20. a4 {[%clk 0:01:55]}  Qe6 {[%clk 0:01:00]} 21. Rd5 {[%clk 0:01:45]}  g4 {[%clk 0:01:00]} 22. Nxc5 {[%clk 0:01:39]}  bxc5 {[%clk 0:00:58]} 23. Rcxc5 {[%clk 0:01:39]}  Nf7 {[%clk 0:00:47]} 24. Qb5+ {[%clk 0:01:35]}  Kf8 {[%clk 0:00:47]} 25. Rxc7 {[%clk 0:01:33]}  gxh3 {[%clk 0:00:39]} 26. Rdd7 {[%clk 0:00:54]}  Rh7 {[%clk 0:00:36]} 27. g3 {[%clk 0:00:41]}  h4 {[%clk 0:00:36]} 28. Kh2 {[%clk 0:00:39]}  hxg3+ {[%clk 0:00:36]} 29. fxg3 {[%clk 0:00:40]}  Qf6 {[%clk 0:00:33]} 30. Qe2 {[%clk 0:00:35]}  Rd8 {[%clk 0:00:18]} 31. Rxd8+ {[%clk 0:00:25]}  Qxd8 {[%clk 0:00:17]} 32. Rc5 {[%clk 0:00:26]}  Qd4 {[%clk 0:00:16]} 33. Rc8+ {[%clk 0:00:24]}  Ke7 {[%clk 0:00:13]} 34. Rc7+ {[%clk 0:00:20]}  Kd8 {[%clk 0:00:09]} 35. Rb7 {[%clk 0:00:18]}  Ng5 {[%clk 0:00:07]} 36. Rxh7 {[%clk 0:00:16]}  Nxh7 {[%clk 0:00:08]} 37. Kxh3 {[%clk 0:00:16]}  Ng5+ {[%clk 0:00:08]} 38. Kh2 {[%clk 0:00:12]}  Nxe4 {[%clk 0:00:09]} 39. c3 {[%clk 0:00:12]}  Qd2 {[%clk 0:00:09]} 40. Qg2 {[%clk 0:00:10]}  Qxg2+ {[%clk 0:00:06]} 41. Kxg2 {[%clk 0:00:11]}  Nc5 {[%clk 0:00:06]} 42. b4 {[%clk 0:00:11]}  Nxa4 {[%clk 0:00:06]} 43. bxa5 {[%clk 0:00:11]}  Nxc3 {[%clk 0:00:06]} 44. g4 {[%clk 0:00:12]}  Nb5 {[%clk 0:00:03]} 45. Kf3 {[%clk 0:00:10]}  Ke7 {[%clk 0:00:03]} 46. Ke4 {[%clk 0:00:11]}  Ke6 {[%clk 0:00:02]} 47. g5 {[%clk 0:00:10]}  Nc7 {[%clk 0:00:02]} 48. g6 {[%clk 0:00:09]}  Na6 {[%clk 0:00:02]} 49. g7 {[%clk 0:00:09]}  Nc5+ {[%clk 0:00:03]} 50. Ke3 {[%clk 0:00:06]}  Kf7 {[%clk 0:00:03]} 51. a6 {[%clk 0:00:07]}  Nxa6 {[%clk 0:00:03]} 52. Ke4 {[%clk 0:00:08]}  Kxg7 {[%clk 0:00:02]} 53. Kxe5 {[%clk 0:00:09]} 1/2-1/2

[Event "December 12 Late 2023"]
[Site "https://www.chess.com"]
[Date "2023.12.12"]
[Round "4"]
[White "Paravyan, David"]
[Black "Haydon, David L"]
[Result "1-0"]
[Board "19"]
[TimeControl "180+1"]
[WhiteFideId "4194985"]
[BlackFideId "415405"]
[WhiteElo "3026"]
[BlackElo "2752"]
[WhiteTeam "FID"]
[BlackTeam "ENG"]
[WhiteClock "0:00:26"]
[BlackClock "0:00:12"]

1. e4 {[%clk 0:03:00]}  c6 {[%clk 0:02:57]} 2. Nf3 {[%clk 0:02:58]}  d5 {[%clk 0:02:58]} 3. Nc3 {[%clk 0:02:59]}  Bg4 {[%clk 0:02:56]} 4. h3 {[%clk 0:02:58]}  Bxf3 {[%clk 0:02:56]} 5. gxf3 {[%clk 0:02:58]}  e6 {[%clk 0:02:57]} 6. d4 {[%clk 0:02:58]}  Nf6 {[%clk 0:02:57]} 7. h4 {[%clk 0:02:56]}  h6 {[%clk 0:02:55]} 8. Rg1 {[%clk 0:02:52]}  Qc7 {[%clk 0:02:51]} 9. Be3 {[%clk 0:02:49]}  Qh2 {[%clk 0:02:46]} 10. Rg3 {[%clk 0:02:47]}  Nh5 {[%clk 0:02:35]} 11. Rh3 {[%clk 0:02:34]}  Qc7 {[%clk 0:02:34]} 12. Qd2 {[%clk 0:02:28]}  Nd7 {[%clk 0:02:29]} 13. O-O-O {[%clk 0:02:27]}  O-O-O {[%clk 0:02:25]} 14. Kb1 {[%clk 0:02:25]}  Nb6 {[%clk 0:02:21]} 15. e5 {[%clk 0:02:16]}  g6 {[%clk 0:02:17]} 16. Bd3 {[%clk 0:02:12]}  Bb4 {[%clk 0:02:13]} 17. a3 {[%clk 0:02:06]}  Bf8 {[%clk 0:02:05]} 18. Ka2 {[%clk 0:02:00]}  a6 {[%clk 0:02:03]} 19. b3 {[%clk 0:01:44]}  c5 {[%clk 0:02:01]} 20. dxc5 {[%clk 0:01:39]}  Bxc5 {[%clk 0:01:58]} 21. Bxc5 {[%clk 0:01:24]}  Qxc5 {[%clk 0:01:55]} 22. f4 {[%clk 0:01:24]}  Kb8 {[%clk 0:01:45]} 23. Ne2 {[%clk 0:01:23]}  Qxf2 {[%clk 0:01:35]} 24. Qb4 {[%clk 0:01:19]}  Nc8 {[%clk 0:01:29]} 25. Nd4 {[%clk 0:01:08]}  Rd7 {[%clk 0:01:10]} 26. Bxa6 {[%clk 0:00:59]}  Rc7 {[%clk 0:01:06]} 27. Rd2 {[%clk 0:00:49]}  Qxf4 {[%clk 0:01:05]} 28. Rf3 {[%clk 0:00:42]}  Qxh4 {[%clk 0:00:52]} 29. Nc6+ {[%clk 0:00:41]}  Ka8 {[%clk 0:00:51]} 30. Bxb7+ {[%clk 0:00:40]}  Rxb7 {[%clk 0:00:27]} 31. Qxh4 {[%clk 0:00:41]}  Nb6 {[%clk 0:00:25]} 32. Rd4 {[%clk 0:00:39]}  Rc7 {[%clk 0:00:22]} 33. Ra4+ {[%clk 0:00:35]}  Kb7 {[%clk 0:00:19]} 34. Ra7+ {[%clk 0:00:35]}  Kc8 {[%clk 0:00:17]} 35. Rxc7+ {[%clk 0:00:27]}  Kxc7 {[%clk 0:00:18]} 36. Nd4 {[%clk 0:00:27]}  Rh7 {[%clk 0:00:12]} 37. Qe7+ {[%clk 0:00:26]} 1-0

[Event "December 12 Late 2023"]
[Site "https://www.chess.com"]
[Date "2023.12.12"]
[Round "4"]
[White "Shuvalova, Polina"]
[Black "Yoo, Christopher Woojin"]
[Result "0-1"]
[Board "20"]
[TimeControl "180+1"]
[WhiteFideId "24171760"]
[BlackFideId "30909694"]
[WhiteElo "2734"]
[BlackElo "3005"]
[WhiteTeam "RUS"]
[BlackTeam "USA"]
[WhiteClock "0:00:02"]
[BlackClock "0:00:05"]

1. e4 {[%clk 0:03:00]}  e5 {[%clk 0:02:59]} 2. Nf3 {[%clk 0:03:00]}  Nc6 {[%clk 0:03:00]} 3. Nc3 {[%clk 0:03:01]}  Nf6 {[%clk 0:02:59]} 4. Bb5 {[%clk 0:03:01]}  Bb4 {[%clk 0:02:52]} 5. O-O {[%clk 0:03:01]}  O-O {[%clk 0:02:52]} 6. d3 {[%clk 0:03:01]}  Bxc3 {[%clk 0:02:51]} 7. bxc3 {[%clk 0:03:01]}  d6 {[%clk 0:02:52]} 8. Re1 {[%clk 0:03:02]}  Ne7 {[%clk 0:02:50]} 9. d4 {[%clk 0:03:00]}  Ng6 {[%clk 0:02:50]} 10. dxe5 {[%clk 0:03:00]}  dxe5 {[%clk 0:02:33]} 11. Ba3 {[%clk 0:02:59]}  Bg4 {[%clk 0:02:33]} 12. Bxf8 {[%clk 0:02:58]}  Qxf8 {[%clk 0:02:34]} 13. h3 {[%clk 0:02:55]}  Rd8 {[%clk 0:02:34]} 14. Qe2 {[%clk 0:02:53]}  Nf4 {[%clk 0:02:34]} 15. Qe3 {[%clk 0:02:52]}  Bxf3 {[%clk 0:02:35]} 16. Qxf3 {[%clk 0:02:50]}  c6 {[%clk 0:02:22]} 17. Bf1 {[%clk 0:02:50]}  Rd2 {[%clk 0:01:48]} 18. g3 {[%clk 0:02:44]}  Ne6 {[%clk 0:01:47]} 19. Re2 {[%clk 0:02:29]}  Rd8 {[%clk 0:01:30]} 20. h4 {[%clk 0:02:24]}  Nc5 {[%clk 0:01:21]} 21. Ree1 {[%clk 0:02:21]}  h5 {[%clk 0:01:17]} 22. Rad1 {[%clk 0:01:52]}  Re8 {[%clk 0:01:11]} 23. Bc4 {[%clk 0:01:50]}  Qe7 {[%clk 0:01:03]} 24. Kg2 {[%clk 0:01:47]}  g6 {[%clk 0:01:03]} 25. a3 {[%clk 0:01:35]}  Kg7 {[%clk 0:01:01]} 26. Re3 {[%clk 0:01:34]}  a5 {[%clk 0:00:55]} 27. Qe2 {[%clk 0:01:33]}  b5 {[%clk 0:00:41]} 28. Ba2 {[%clk 0:01:33]}  Na4 {[%clk 0:00:35]} 29. Bb3 {[%clk 0:01:11]}  Nb6 {[%clk 0:00:28]} 30. Rf3 {[%clk 0:00:55]}  a4 {[%clk 0:00:27]} 31. Ba2 {[%clk 0:00:53]}  Qxa3 {[%clk 0:00:27]} 32. Qe3 {[%clk 0:00:48]}  Qxa2 {[%clk 0:00:17]} 33. Qxb6 {[%clk 0:00:47]}  Qe6 {[%clk 0:00:18]} 34. Re3 {[%clk 0:00:36]}  Ra8 {[%clk 0:00:16]} 35. Qb7 {[%clk 0:00:36]}  Qc8 {[%clk 0:00:13]} 36. Qxc8 {[%clk 0:00:30]}  Rxc8 {[%clk 0:00:12]} 37. f3 {[%clk 0:00:30]}  Kf8 {[%clk 0:00:11]} 38. Kf2 {[%clk 0:00:31]}  Ke7 {[%clk 0:00:12]} 39. Ke2 {[%clk 0:00:32]}  Nd7 {[%clk 0:00:10]} 40. Red3 {[%clk 0:00:26]}  Nb6 {[%clk 0:00:09]} 41. f4 {[%clk 0:00:22]}  Rc7 {[%clk 0:00:06]} 42. Kf3 {[%clk 0:00:21]}  Nc4 {[%clk 0:00:06]} 43. Ra1 {[%clk 0:00:15]}  Ra7 {[%clk 0:00:04]} 44. f5 {[%clk 0:00:11]}  gxf5 {[%clk 0:00:04]} 45. exf5 {[%clk 0:00:10]}  Nd6 {[%clk 0:00:05]} 46. Re3 {[%clk 0:00:09]}  Kf6 {[%clk 0:00:04]} 47. Rae1 {[%clk 0:00:06]}  Nc4 {[%clk 0:00:03]} 48. Rd3 {[%clk 0:00:06]}  Kxf5 {[%clk 0:00:03]} 49. Rd8 {[%clk 0:00:05]}  a3 {[%clk 0:00:02]} 50. Rh8 {[%clk 0:00:04]}  a2 {[%clk 0:00:01]} 51. Ra1 {[%clk 0:00:05]}  Kg6 {[%clk 0:00:02]} 52. Rg8+ {[%clk 0:00:05]}  Kh7 {[%clk 0:00:02]} 53. Rg5 {[%clk 0:00:05]}  Kh6 {[%clk 0:00:03]} 54. Ke4 {[%clk 0:00:03]}  f6 {[%clk 0:00:03]} 55. Rg8 {[%clk 0:00:03]}  Kh7 {[%clk 0:00:03]} 56. Rc8 {[%clk 0:00:04]}  Nd6+ {[%clk 0:00:03]} 57. Kd3 {[%clk 0:00:04]}  Nxc8 {[%clk 0:00:03]} 58. c4 {[%clk 0:00:04]}  b4 {[%clk 0:00:04]} 59. c5 {[%clk 0:00:05]}  f5 {[%clk 0:00:03]} 60. Kc4 {[%clk 0:00:05]}  Ne7 {[%clk 0:00:02]} 61. Kxb4 {[%clk 0:00:05]}  Nd5+ {[%clk 0:00:03]} 62. Kc4 {[%clk 0:00:06]}  e4 {[%clk 0:00:03]} 63. Kd4 {[%clk 0:00:05]}  Ra4+ {[%clk 0:00:03]} 64. Ke5 {[%clk 0:00:05]}  Kg6 {[%clk 0:00:04]} 65. Kd6 {[%clk 0:00:05]}  Ra6 {[%clk 0:00:03]} 66. c4 {[%clk 0:00:06]}  Nb4 {[%clk 0:00:04]} 67. Kc7 {[%clk 0:00:07]}  e3 {[%clk 0:00:04]} 68. Kb7 {[%clk 0:00:07]}  e2 {[%clk 0:00:05]} 69. Re1 {[%clk 0:00:02]}  a1=Q {[%clk 0:00:05]} 0-1

[Event "December 12 Late 2023"]
[Site "https://www.chess.com"]
[Date "2023.12.12"]
[Round "4"]
[White "Makarian, Rudik"]
[Black "Sai Krishna G V"]
[Result "1-0"]
[Board "21"]
[TimeControl "180+1"]
[WhiteFideId "44105681"]
[BlackFideId "5028280"]
[WhiteElo "2928"]
[BlackElo "2718"]
[WhiteTeam "FID"]
[BlackTeam "IND"]
[WhiteClock "0:00:10"]
[BlackClock "0:00:11"]

1. d4 {[%clk 0:03:00]}  Nf6 {[%clk 0:02:59]} 2. c4 {[%clk 0:03:00]}  e6 {[%clk 0:03:00]} 3. Nf3 {[%clk 0:03:01]}  b6 {[%clk 0:03:00]} 4. g3 {[%clk 0:03:01]}  Ba6 {[%clk 0:02:59]} 5. b3 {[%clk 0:03:02]}  d5 {[%clk 0:02:56]} 6. Bg2 {[%clk 0:03:02]}  Be7 {[%clk 0:02:48]} 7. O-O {[%clk 0:03:02]}  O-O {[%clk 0:02:48]} 8. Bb2 {[%clk 0:03:01]}  Nbd7 {[%clk 0:02:38]} 9. Nbd2 {[%clk 0:02:57]}  Rc8 {[%clk 0:02:37]} 10. Ne5 {[%clk 0:02:55]}  c5 {[%clk 0:02:35]} 11. cxd5 {[%clk 0:02:39]}  Nxd5 {[%clk 0:02:29]} 12. Ndc4 {[%clk 0:02:28]}  Bf6 {[%clk 0:02:00]} 13. Nxd7 {[%clk 0:01:30]}  Qxd7 {[%clk 0:02:00]} 14. dxc5 {[%clk 0:01:30]}  Bxc4 {[%clk 0:01:47]} 15. bxc4 {[%clk 0:01:27]}  Bxb2 {[%clk 0:01:38]} 16. Rb1 {[%clk 0:01:23]}  Ba3 {[%clk 0:01:06]} 17. cxd5 {[%clk 0:01:13]}  Bxc5 {[%clk 0:01:05]} 18. Qb3 {[%clk 0:01:10]}  e5 {[%clk 0:01:01]} 19. e4 {[%clk 0:00:54]}  f5 {[%clk 0:00:59]} 20. Bh3 {[%clk 0:00:45]}  g6 {[%clk 0:00:57]} 21. Rbc1 {[%clk 0:00:40]}  Qd6 {[%clk 0:00:54]} 22. Qd3 {[%clk 0:00:36]}  Rce8 {[%clk 0:00:50]} 23. Rce1 {[%clk 0:00:29]}  f4 {[%clk 0:00:49]} 24. Kg2 {[%clk 0:00:22]}  Rf6 {[%clk 0:00:48]} 25. f3 {[%clk 0:00:17]}  Ref8 {[%clk 0:00:46]} 26. Qb5 {[%clk 0:00:14]}  Kg7 {[%clk 0:00:41]} 27. Qd7+ {[%clk 0:00:13]}  Qxd7 {[%clk 0:00:36]} 28. Bxd7 {[%clk 0:00:14]}  g5 {[%clk 0:00:36]} 29. g4 {[%clk 0:00:10]}  Be3 {[%clk 0:00:26]} 30. Re2 {[%clk 0:00:08]}  R6f7 {[%clk 0:00:24]} 31. Bf5 {[%clk 0:00:06]}  Rc7 {[%clk 0:00:24]} 32. h4 {[%clk 0:00:06]}  gxh4 {[%clk 0:00:19]} 33. Rh1 {[%clk 0:00:07]}  h6 {[%clk 0:00:19]} 34. Rxh4 {[%clk 0:00:08]}  Rc1 {[%clk 0:00:19]} 35. Kh2 {[%clk 0:00:07]}  Bg1+ {[%clk 0:00:19]} 36. Kh3 {[%clk 0:00:07]}  Be3 {[%clk 0:00:19]} 37. Kg2 {[%clk 0:00:02]}  Rf6 {[%clk 0:00:17]} 38. Rh1 {[%clk 0:00:02]}  Rc5 {[%clk 0:00:14]} 39. Kh3 {[%clk 0:00:01]}  Rf7 {[%clk 0:00:13]} 40. Kg2 {[%clk 0:00:02]}  Rfc7 {[%clk 0:00:14]} 41. Rhe1 {[%clk 0:00:03]}  a5 {[%clk 0:00:10]} 42. d6 {[%clk 0:00:03]}  Ra7 {[%clk 0:00:06]} 43. d7 {[%clk 0:00:03]}  Ra8 {[%clk 0:00:06]} 44. Rd1 {[%clk 0:00:03]}  Rd8 {[%clk 0:00:06]} 45. Rd6 {[%clk 0:00:04]}  Rc1 {[%clk 0:00:06]} 46. Rg6+ {[%clk 0:00:04]}  Kf7 {[%clk 0:00:07]} 47. Rxh6 {[%clk 0:00:05]}  Rh1 {[%clk 0:00:07]} 48. Rxh1 {[%clk 0:00:04]}  Ke7 {[%clk 0:00:07]} 49. Rh7+ {[%clk 0:00:04]}  Kd6 {[%clk 0:00:08]} 50. Rh6+ {[%clk 0:00:05]}  Kc7 {[%clk 0:00:08]} 51. Rc2+ {[%clk 0:00:06]}  Kb7 {[%clk 0:00:09]} 52. Rhc6 {[%clk 0:00:07]}  Bc5 {[%clk 0:00:08]} 53. Rc8 {[%clk 0:00:07]}  Ka6 {[%clk 0:00:07]} 54. Rxd8 {[%clk 0:00:08]}  Kb5 {[%clk 0:00:08]} 55. Ra8 {[%clk 0:00:08]}  Bb4 {[%clk 0:00:09]} 56. d8=Q {[%clk 0:00:09]}  Ka4 {[%clk 0:00:10]} 57. Qd5 {[%clk 0:00:10]}  b5 {[%clk 0:00:11]} 58. Qb3# {[%clk 0:00:10]} 1-0

[Event "December 12 Late 2023"]
[Site "https://www.chess.com"]
[Date "2023.12.12"]
[Round "4"]
[White "Sanchez Enriquez, Oscar Gerardo"]
[Black "Yuan, Qingyu"]
[Result "1-0"]
[Board "23"]
[TimeControl "180+1"]
[WhiteFideId "5106311"]
[BlackFideId "8609772"]
[WhiteElo "2507"]
[BlackElo "2796"]
[WhiteTeam "MEX"]
[BlackTeam "CHN"]
[WhiteClock "0:00:12"]
[BlackClock "0:00:05"]

1. e4 {[%clk 0:03:00]}  e5 {[%clk 0:02:59]} 2. Bc4 {[%clk 0:02:59]}  Nf6 {[%clk 0:02:59]} 3. d3 {[%clk 0:03:00]}  Nc6 {[%clk 0:02:59]} 4. Nc3 {[%clk 0:03:00]}  Na5 {[%clk 0:02:57]} 5. Bb3 {[%clk 0:02:58]}  Bc5 {[%clk 0:02:50]} 6. Nf3 {[%clk 0:02:54]}  d6 {[%clk 0:02:43]} 7. h3 {[%clk 0:02:54]}  c6 {[%clk 0:02:37]} 8. Be3 {[%clk 0:02:53]}  Bxe3 {[%clk 0:02:34]} 9. fxe3 {[%clk 0:02:54]}  O-O {[%clk 0:02:31]} 10. O-O {[%clk 0:02:54]}  Qe7 {[%clk 0:02:16]} 11. Qe1 {[%clk 0:02:52]}  Nxb3 {[%clk 0:02:16]} 12. axb3 {[%clk 0:02:51]}  d5 {[%clk 0:02:12]} 13. exd5 {[%clk 0:02:46]}  Nxd5 {[%clk 0:02:10]} 14. Nxd5 {[%clk 0:02:38]}  cxd5 {[%clk 0:02:10]} 15. Kh1 {[%clk 0:02:31]}  f6 {[%clk 0:02:01]} 16. e4 {[%clk 0:02:26]}  d4 {[%clk 0:01:50]} 17. c4 {[%clk 0:01:50]}  dxc3 {[%clk 0:01:41]} 18. bxc3 {[%clk 0:01:51]}  Be6 {[%clk 0:01:40]} 19. b4 {[%clk 0:01:50]}  Rfd8 {[%clk 0:01:29]} 20. Qe3 {[%clk 0:01:49]}  a6 {[%clk 0:01:25]} 21. d4 {[%clk 0:01:39]}  exd4 {[%clk 0:01:16]} 22. Nxd4 {[%clk 0:01:40]}  Bd7 {[%clk 0:01:14]} 23. Rae1 {[%clk 0:01:34]}  Re8 {[%clk 0:01:14]} 24. Rf3 {[%clk 0:01:30]}  Kh8 {[%clk 0:01:10]} 25. Qf2 {[%clk 0:01:17]}  Qd6 {[%clk 0:01:05]} 26. Rfe3 {[%clk 0:01:14]}  b6 {[%clk 0:01:02]} 27. Nf3 {[%clk 0:01:11]}  Rf8 {[%clk 0:00:49]} 28. Qh4 {[%clk 0:00:54]}  Rae8 {[%clk 0:00:45]} 29. e5 {[%clk 0:00:52]}  Qb8 {[%clk 0:00:25]} 30. e6 {[%clk 0:00:42]}  Bc6 {[%clk 0:00:24]} 31. Nd4 {[%clk 0:00:35]}  Ba8 {[%clk 0:00:21]} 32. Nf5 {[%clk 0:00:27]}  g6 {[%clk 0:00:18]} 33. e7 {[%clk 0:00:20]}  Rf7 {[%clk 0:00:18]} 34. Nh6 {[%clk 0:00:20]}  Bd5 {[%clk 0:00:04]} 35. Nxf7+ {[%clk 0:00:19]}  Bxf7 {[%clk 0:00:05]} 36. Qxf6+ {[%clk 0:00:19]}  Kg8 {[%clk 0:00:06]} 37. Rf1 {[%clk 0:00:17]}  Bc4 {[%clk 0:00:03]} 38. Rf4 {[%clk 0:00:13]}  Bd5 {[%clk 0:00:01]} 39. Qf8+ {[%clk 0:00:09]}  Rxf8 {[%clk 0:00:01]} 40. exf8=Q+ {[%clk 0:00:10]}  Qxf8 {[%clk 0:00:02]} 41. Rxf8+ {[%clk 0:00:10]}  Kxf8 {[%clk 0:00:03]} 42. Kh2 {[%clk 0:00:11]}  Kf7 {[%clk 0:00:03]} 43. Kg3 {[%clk 0:00:11]}  a5 {[%clk 0:00:03]} 44. bxa5 {[%clk 0:00:10]}  bxa5 {[%clk 0:00:04]} 45. Re5 {[%clk 0:00:10]}  Be6 {[%clk 0:00:02]} 46. Rxa5 {[%clk 0:00:11]}  Kf6 {[%clk 0:00:02]} 47. Kf4 {[%clk 0:00:11]}  h6 {[%clk 0:00:02]} 48. h4 {[%clk 0:00:11]}  Bf5 {[%clk 0:00:02]} 49. g4 {[%clk 0:00:10]}  Be6 {[%clk 0:00:02]} 50. g5+ {[%clk 0:00:11]}  hxg5+ {[%clk 0:00:03]} 51. hxg5+ {[%clk 0:00:11]}  Ke7 {[%clk 0:00:04]} 52. Ke5 {[%clk 0:00:12]}  Bd7 {[%clk 0:00:04]} 53. Ra7 {[%clk 0:00:12]}  Ke8 {[%clk 0:00:04]} 54. Kf6 {[%clk 0:00:12]}  Bf5 {[%clk 0:00:04]} 55. Rg7 {[%clk 0:00:11]}  Kf8 {[%clk 0:00:03]} 56. Rxg6 {[%clk 0:00:12]}  Bxg6 {[%clk 0:00:04]} 57. Kxg6 {[%clk 0:00:11]}  Kg8 {[%clk 0:00:05]} 58. Kf6 {[%clk 0:00:12]}  Kh8 {[%clk 0:00:05]} 59. c4 {[%clk 0:00:12]}  Kh7 {[%clk 0:00:04]} 60. c5 {[%clk 0:00:13]}  Kh8 {[%clk 0:00:03]} 61. c6 {[%clk 0:00:14]}  Kg8 {[%clk 0:00:04]} 62. c7 {[%clk 0:00:13]}  Kh7 {[%clk 0:00:05]} 63. g6+ {[%clk 0:00:13]}  Kh6 {[%clk 0:00:05]} 64. c8=Q {[%clk 0:00:13]}  Kh5 {[%clk 0:00:06]} 65. Qc4 {[%clk 0:00:11]}  Kh6 {[%clk 0:00:05]} 66. Qh4# {[%clk 0:00:12]} 1-0